Cogmind - Beta 14 @@@ ROGUE MODE // 2024.11.04 @ 18:05:11 Player: Shimmyarah Result: Destroyed by H-55 Commando with Gauss Rifle Performance ------------- Evolutions (2) 1000 Regions Visited (4) 800 Robots Destroyed (51) 255 Value Destroyed (1344) 1344 Prototype IDs (1) 20 Alien Tech Used (0) 0 Bonus (212) 212 TOTAL SCORE: 3631 Bonus ------- High Alert Combat Kills 239 Follower Combat Kills 167 Friendly Fire -194 Cogmind --------- Core Integrity 0/550 Matter 90/300 Energy 100/100 System Corruption 2% Temperature Danger (492) Movement Core (350) Ox6 Location -8/Materials Parts ------- > --- POWER (2) -------- Cooled Ion Engine > --- PROPULSION (2) --- (None) > --- UTILITY (2) ------ (None) > --- WEAPON (5) ------- Ion Cannon Ion Cannon > --- INVENTORY (5) ---- (None) Peak State ------------ > --- POWER ------------ Ion Engine > --- PROPULSION ------- Light Treads Light Treads > --- UTILITY ---------- Seismic Detector Hardened Medium Armor Plating > --- WEAPON ----------- Particle Gun Beam Cannon Heavy Assault Rifle Shock Bomb Launcher Shock Bomb Launcher > --- INVENTORY -------- Cooling System Heavy EM Pulse Gun Shock Bomb Launcher Rocket Launcher Mining Laser [Rating: 19] Favorites ----------- Power Ion Engine Engine Ion Engine Power Core Light Nuclear Core Propulsion Light Treads Treads Light Treads Leg Aluminum Leg Utility Improved Terrain Scanner Device Improved Terrain Scanner Processor Signal Interpreter Protection Hardened Medium Armor Plating Weapon Medium Laser Energy Gun Medium Laser Energy Cannon Beam Cannon Ballistic Gun Light Assault Rifle Launcher Grenade Launcher Special Weapon Mining Laser Special Melee Weapon Datajack Build | -11 -10 -10 -9 -8 ------- Run | Yrd Mat Min Mat Mat Slots Evolved 4 | . . . 2 2 Power 1 | . . . . 1 Propulsion . | . . . . . Utility . | . . . . . Weapon 3 | . . . 2 1 Parts Attached 53 | 9 6 3 17 18 Power 5 | 1 . . 2 2 Engine 4 | 1 . . 2 1 Core 1 | . . . . 1 Reactor . | . . . . . Propulsion 5 | 2 1 . 1 1 Treads 4 | 2 1 . 1 . Leg 1 | . . . . 1 Wheel . | . . . . . Hover . | . . . . . Flight . | . . . . . Utility 13 | 2 . 1 6 4 Device 10 | 2 . 1 4 3 Storage . | . . . . . Processor 1 | . . . 1 . Hackware . | . . . . . Protection 2 | . . . 1 1 Artifact . | . . . . . Weapon 30 | 4 5 2 8 11 Energy Gun 4 | 1 1 . 1 1 Energy Cannon 7 | . . . 1 6 Ballistic Gun 4 | 2 . . 2 . Ballistic Cannon . | . . . . . Launcher 10 | . 1 2 4 3 Special Weapon 4 | 1 2 . . 1 Impact Weapon . | . . . . . Slashing Weapon . | . . . . . Piercing Weapon . | . . . . . Special Melee Weapon 1 | . 1 . . . Unidentified Prototypes 1 | . . . . 1 Parts Lost 26 | . . . 3 23 Power 3 | . . . 1 2 Propulsion 3 | . . . . 3 Utility 6 | . . . 1 5 Weapon 14 | . . . 1 13 Highest Loss Streak 15 | . . . 2 15 To Critical Strikes 1 | . . . . 1 Average Slot Usage (%) 89 | . 100 87 98 60 Engine 12 | . 14 14 10 6 Treads 24 | . 28 28 22 9 Device 16 | . 28 16 14 6 Processor 1 | . . . 5 . Energy Gun 11 | . 7 14 11 5 Energy Cannon 3 | . . . 7 9 Ballistic Gun 5 | . 12 . 11 4 Launcher 11 | . 1 13 13 10 Special Weapon 1 | . 6 . . . Peak Build Rating 19 | 9 9 10 17 19 Average Rating 9 | 8 9 8 11 14 On Entrance 8 | . 9 9 10 16 Naked Turns 26 | . . . . 26 Heaviest Build 38 | 10 11 13 30 38 Greatest Support 40 | 40 40 40 40 40 Greatest Overweight (x) 12 | . . . . 12 Average Overweight (x) . | . . . . . Largest Inventory Capacity 5 | 5 5 5 5 5 Average Capacity 5 | 5 5 5 5 5 Most Carried 5 | 5 5 5 5 5 Average Carried 4 | 1 3 4 4 3 Final Capacity 5 | 5 5 5 5 5 Final Carried 5 | 2 5 5 5 . Class Distribution -------------------- 69% | Mutant 12% | Skirmisher 8% | Scavenger-Tank 6% | Scavenger-Gunner 3% | Gunner Dominant Class ---------------- Mutant | -10/Materials Mutant | -10/Mines Skirmisher | -9/Materials Scavenger-Tank | -8/Materials Resources | -11 -10 -10 -9 -8 ----------- Run | Yrd Mat Min Mat Mat Matter Collected 935 | 271 44 201 327 92 Remotely . | . . . . . Salvage Created 1348 | 103 44 198 398 605 Parts 99 | 10 2 7 37 43 Haulers Intercepted . | . . . . . Recyclers Shooed 1 | 1 . . . . Parts Field Recycled . | . . . . . Retrieved Matter . | . . . . . Parts Self-Destructed . | . . . . . Prevented . | . . . . . Kills | -11 -10 -10 -9 -8 ------- Run | Yrd Mat Min Mat Mat Combat Hostiles Destroyed 31 | . 1 6 9 15 Guns 8 | . 1 2 4 1 Cannons 6 | . . . 1 5 AOE 17 | . . 4 4 9 Classes Destroyed 9 | 2 2 1 3 1 Worker 2 | . . . 1 1 Builder 6 | . 1 . 5 . Tunneler 4 | 2 . . 1 1 Recycler 2 | 1 . 1 . . Operator 1 | . . . . 1 Watcher 4 | . . . 2 2 Swarmer 8 | . . 2 2 4 Grunt 21 | . 1 4 6 10 Sentry 3 | . . . 2 1 Best Kill Streak 9 | 2 1 2 8 9 Combat Bots Only 7 | . 1 2 3 7 Max Kills in Single Turn 3 | 1 1 2 3 2 Gunslinging . | . . . . . Exploded 2 | . . 2 1 1 Melee . | . . . . . Uniques/NPCs Destroyed . | . . . . . Combat | -11 -10 -10 -9 -8 -------- Run | Yrd Mat Min Mat Mat Hostile Shots Fired 281 | . 10 10 52 209 Missed 69 | . 2 3 12 52 Damage Taken 3219 | . 160 153 518 2388 Core 649 | . 22 17 59 551 Absorbed by Shields . | . . . . . Regen/Repaired (Parts) 39 | . . . 39 . Core Remaining (%) 89 | 100 . 84 85 . Volleys Fired 116 | 39 24 8 21 24 Largest 5 | 2 2 2 4 5 Hottest 300 | 150 150 83 184 300 Shots Fired 268 | 62 46 17 73 70 Gun 141 | 45 24 9 39 24 Cannon 47 | . . . 21 26 Launcher 43 | . 2 8 13 20 Special 37 | 17 20 . . . Kinetic 56 | 6 20 . 21 9 Thermal 159 | 56 24 9 39 31 Explosive 30 | . 2 8 12 8 Electromagnetic 23 | . . . 1 22 Robot Hit Streak 12 | 4 7 6 12 5 Robot Miss Streak 4 | 1 3 1 4 4 Penetration Max . | . . . . . Secondary Targets . | . . . . . Shots Hit Robots 94 | 7 8 8 43 28 Core Hits 77 | 4 5 10 26 32 Critical Kills . | . . . . . Critical Parts Destroyed 1 | . . . 1 . Critical Strikes 2 | . . . 2 . Burn 1 | . . . 1 . Destroy 1 | . . . 1 . Melee Attacks 1 | . 1 . . . Impact . | . . . . . Slashing . | . . . . . Piercing . | . . . . . Sneak Attacks . | . . . . . Combat Hostiles . | . . . . . Follow-up Attacks . | . . . . . Damage Inflicted 3459 | 77 97 334 1446 1505 Guns 730 | 77 50 49 356 198 Cannons 638 | . . . 263 375 Explosions 2042 | . 21 282 825 914 Melee . | . . . . . Ramming 25 | . 2 3 2 18 Kinetic 258 | 15 12 . 187 44 Thermal 977 | 62 62 49 432 372 Explosive 1732 | . 21 282 805 624 Electromagnetic 467 | . . . 20 447 Impact . | . . . . . Slashing . | . . . . . Piercing . | . . . . . Highest Corruption 4 | . 4 4 2 2 Average Corruption 3 | . 3 4 2 1 Corruption Purged . | . . . . . Corruption Blocked . | . . . . . Effects 36 | . 4 26 5 1 Message Errors 9 | . 2 6 1 . Matter Fused 12 | . 1 8 2 1 Heat Flow Errors 3 | . 1 2 . . Energy Discharges 9 | . . 7 2 . Parts Rejected 1 | . . 1 . . Parts Fused 1 | . . 1 . . Misfires 1 | . . 1 . . Overload Shots . | . . . . . Overflow Damage 59 | . . . 28 31 Projectiles 7 | . . . . 7 Explosions 52 | . . . 28 24 Melee . | . . . . . Knockbacks . | . . . . . Impact . | . . . . . Kinetic . | . . . . . Secondary . | . . . . . Self-Inflicted Damage 397 | . 71 88 58 180 Shots 16 | . 2 4 2 8 Rammed 13 | . 3 1 2 7 Targets Rammed 13 | . 3 1 2 7 Kicked . | . . . . . Crushed . | . . . . . Highest Temperature 646 | 290 236 190 480 646 Average Temperature 132 | 117 74 48 164 214 Received Heat Transfer 1047 | . 48 18 135 846 Effects 18 | 4 . . 3 11 Shutdowns 1 | . . . 1 . Energy Bleed 3 | 1 . . 2 . Interference 8 | 3 . . . 5 Matter Decay 1 | . . . . 1 Short Circuit 3 | . . . . 3 Damage (minor) 2 | . . . . 2 Siege Activations . | . . . . . Robots Corrupted . | . . . . . Combat Hostiles . | . . . . . Parts Fried 3 | . . . 1 2 Impact Corruptions . | . . . . . Robots Melted . | . . . . . Combat Hostiles . | . . . . . Parts Melted 4 | 1 1 1 1 . Heat Transferred 2196 | 185 161 148 1036 666 Parts Sabotaged . | . . . . . Parts Stolen . | . . . . . Parts Stripped . | . . . . . Power Chain Reactions . | . . . . . Alert | -11 -10 -10 -9 -8 ------- Run | Yrd Mat Min Mat Mat Peak Influence 764 | 15 73 282 614 764 Initial 259 | . . 28 . 259 Average 137 | 11 11 93 192 544 Maximum Alert Level 3 | . . 1 2 3 Low Security (%) 78 | 100 100 88 66 . Level 1 8 | . . 11 8 23 Level 2 10 | . . . 24 54 Level 3 2 | . . . . 22 Level 4 . | . . . . . Level 5 . | . . . . . High Security . | . . . . . Max Security . | . . . . . Squads Dispatched 5 | . . . 1 4 Investigation 2 | . . . . 2 Extermination . | . . . . . Reinforcement 3 | . . . 1 2 Assault . | . . . . . Garrison . | . . . . . Intercept . | . . . . . Searches Triggered . | . . . . . Construction Impeded 2 | . . . 1 1 Haulers Reinforced . | . . . . . Active Scanning Responses . | . . . . . Cargo Convoy Interrupts . | . . . . . Stealth | -11 -10 -10 -9 -8 --------- Run | Yrd Mat Min Mat Mat Distress Signals 6 | . . . 2 4 Communications Jammed . | . . . . . Distress Signals . | . . . . . Times Spotted 63 | . 2 7 22 32 Peak Tracking Total 9 | . 2 3 6 9 Tactical Retreats 6 | . . . 1 5 Traps | -11 -10 -10 -9 -8 ------- Run | Yrd Mat Min Mat Mat Traps Triggered 4 | . 2 . 1 1 Indirectly . | . . . . . Trap Hack Attempts . | . . . . . Triggered . | . . . . . Disarmed . | . . . . . Reprogrammed . | . . . . . Reused . | . . . . . Traps Extracted . | . . . . . Installed . | . . . . . Triggered . | . . . . . Machines | -11 -10 -10 -9 -8 ---------- Run | Yrd Mat Min Mat Mat Machines Disabled 11 | . 2 5 1 3 Max in Single Turn 3 | . 2 3 1 2 Machines Repaired . | . . . . . Machines Dismantled . | . . . . . Machines Sabotaged . | . . . . . Overloaded Fab Kills . | . . . . . Hacking | -11 -10 -10 -9 -8 --------- Run | Yrd Mat Min Mat Mat Machines Accessed 2 | . . . 2 . Terminals . | . . . . . Fabricators . | . . . . . Repair Stations 1 | . . . 1 . Recycling Units . | . . . . . Scanalyzers 1 | . . . 1 . Garrison Access . | . . . . . Total Hacks 7 | . . . 7 . Successful 4 | . . . 4 . Failed 3 | . . . 3 . Catastrophic . | . . . . . Database Lockouts . | . . . . . Manual . | . . . . . Terminals . | . . . . . Fabricators . | . . . . . Repair Stations 5 | . . . 5 . Recycling Units . | . . . . . Scanalyzers 2 | . . . 2 . Garrison Access . | . . . . . Terminal Hacks . | . . . . . Fabricator Hacks . | . . . . . Repair Station Hacks 2 | . . . 2 . Scan Component 1 | . . . 1 . Repair 1 | . . . 1 . Recycling Unit Hacks . | . . . . . Scanalyzer 2 | . . . 2 . Insert Component 1 | . . . 1 . Analyze 1 | . . . 1 . Garrison Access Hacks . | . . . . . Unauthorized Hacks . | . . . . . Terminals . | . . . . . Fabricators . | . . . . . Repair Stations . | . . . . . Recycling Units . | . . . . . Scanalyzers . | . . . . . Garrison Access . | . . . . . Data Cores Recovered . | . . . . . Used . | . . . . . Hacking Detections 1 | . . . 1 . Full Trace Events . | . . . . . Feedback Events . | . . . . . Feedback Blocked . | . . . . . Robot Schematics Acquired . | . . . . . Robots Built . | . . . . . Authchips . | . . . . . Time . | . . . . . Total Robot Build Rating . | . . . . . Part Schematics Acquired 1 | . . . 1 . Parts Built . | . . . . . Authchips . | . . . . . Time . | . . . . . Total Part Build Rating . | . . . . . Parts Repaired 1 | . . . 1 . Time 26 | . . . 26 . Parts Recycled . | . . . . . Recycled Matter . | . . . . . Retrieved Matter . | . . . . . Retrieved Components . | . . . . . Parts Scanalyzed 1 | . . . 1 . Part Schematics Acquired 1 | . . . 1 . Parts Damaged . | . . . . . Bothacking | -11 -10 -10 -9 -8 ------------ Run | Yrd Mat Min Mat Mat Used RIF Installer . | . . . . . Robots Hacked . | . . . . . Non-combat . | . . . . . Combat . | . . . . . Robot Hacks Applied . | . . . . . Relay Couplers Released . | . . . . . Fabnet Peak Effective % . | . . . . . Robots Rewired . | . . . . . Allies Hacked . | . . . . . Hacks Repelled . | . . . . . Allies | -11 -10 -10 -9 -8 -------- Run | Yrd Mat Min Mat Mat Total Allies 3 | . . 3 . . Largest Group 3 | . . 3 3 . Highest-Rated Group 40 | . . 40 40 . Highest-Rated Ally 16 | . . 16 16 . Total Orders 3 | . . 3 . . GUARD 3 | . . 3 . . Ally Attacks 42 | . . 10 32 . Total Damage 454 | . . 97 357 . Kills 11 | . . 1 10 . Allies Corrupted . | . . . . . Allies Melted . | . . . . . Intel | -11 -10 -10 -9 -8 ------- Run | Yrd Mat Min Mat Mat Robot Analysis Total . | . . . . . Derelict Logs Recovered 1 | . . 1 . . Drone Launches . | . . . . . Drone Recoveries . | . . . . . Exploration | -11 -10 -10 -9 -8 ------------- Run | Yrd Mat Min Mat Mat Turns Passed 3270 | 475 384 1311 798 302 Spaces Moved 1738 | 210 163 801 431 133 Core 68 | 12 . . . 56 Treads 1666 | 198 163 801 431 73 Legs 4 | . . . . 4 Wheels . | . . . . . Hover . | . . . . . Flight . | . . . . . Fastest Speed 50 | 50 160 160 160 50 Average Speed 157 | 153 160 160 160 142 Slowest Speed 650 | 160 160 160 160 650 Overloaded Moves . | . . . . . Propulsion Burnouts . | . . . . . Robots Hopped . | . . . . . Cave-ins Triggered . | . . . . . Exploration Rate (%) 33 | 11 20 93 30 12 Regions Visited 4 Branch Regions 1 Pre-discovered Areas . | . . . . . Known Exits Taken . | . . . . . Unknown Exits Taken 4 | 1 1 1 1 . Scrap Searched 1 | . . 1 . . Spaces Dug 16 | 3 13 . . . Terrain Destroyed 186 | 7 24 47 65 43 Melee . | . . . . . Projectile 26 | 7 17 . . 2 AOE 160 | . 7 47 65 41 Terrain Rammed . | . . . . . Walls Destroyed . | . . . . . Machines Disabled . | . . . . . Actions | -11 -10 -10 -9 -8 --------- Run | Yrd Mat Min Mat Mat Total 1964 | 267 200 814 490 193 Wait . | . . . . . Move 1734 | 209 162 800 430 133 Hop . | . . . . . Pick Up 34 | 9 3 1 10 11 Fast Attach 6 | 1 . . 4 1 Attach 29 | 6 . 1 6 16 Detach . | . . . . . Swap 18 | 2 6 2 7 1 Drop 13 | 1 1 1 10 . Fire 116 | 39 24 8 21 24 Melee 1 | . 1 . . . Ram 5 | . . . . 5 Kick . | . . . . . Crush 8 | . 3 1 2 2 Escape Stasis . | . . . . . Rewire . | . . . . . Trap . | . . . . . Miscellaneous . | . . . . . Route ------- -11/Scrapyard -10/Materials -10/Mines (discovered 2 exits: *Mat x2) -9/Materials -8/Materials History --------- Turn | Location | Event 10 | -11/Scrapyard | Discovered new exit (range 16) 476 | -11/Scrapyard | Entered Materials 493 | -10/Materials | Build established: Mutant 844 | -10/Materials | Discovered new exit (range 9) 860 | -10/Materials | Entered Mines 864 | -10/Mines | Assisted by bots powering up and referring to "LRC-V3" 1108 | -10/Mines | Discovered new exit (range 11) 1614 | -10/Mines | Learned Materials stockpile data 1683 | -10/Mines | Discovered new exit (range 13) 1928 | -10/Mines | Received a Rocket Launcher from a helpful Derelict 2171 | -10/Mines | Entered Materials 2171 | -9/Materials | Accompanied by 3 allies 2171 | -9/Materials | Evolved 2 slots: Weapon x2 2439 | -9/Materials | Repaired Grenade Launcher 2467 | -9/Materials | Build established: Skirmisher 2945 | -9/Materials | Discovered new exit (range 15) 2969 | -9/Materials | Entered another Materials area 2969 | -8/Materials | Evolved 2 slots: Power x1, Weapon x1 3169 | -8/Materials | Destroyed 7 combat bots 3202 | -8/Materials | Lost 15 parts (1p3n2u9w) 3208 | -8/Materials | Core integrity fell below 50% 3240 | -8/Materials | Lost 5 parts (1p3u1w) 3250 | -8/Materials | Core integrity fell below 20% 3271 | -8/Materials | Destroyed by H-55 Commando with Gauss Rifle Last Messages --------------- 03256_ Critical hit (Burn: +37). 03259_ Penetrated by Slug. 03261_ Overheating: System interference. 03261_ Ion Cannon temporarily disabled. 03261_ Destroyed Particle Gun. 03261_ G-47 Trooper destroyed. 03262_ Penetrated by Slug. 03263_ Cld. Ion Engine broken. 03263_ Overheating: Short circuit. 03263_ Ion Cannon destroyed. 03264_ Overheating: System interference. 03264_ Ion Cannon temporarily disabled. 03265_ Overheating: Ion Cannon damaged (-58). 03265_ Penetrated by Slug. 03268_ Critical hit (Destroy). 03268_ Ion Cannon destroyed. 03269_ Overheating: Ion Cannon damaged (-28). 03269_ Ion Cannon destroyed. 03270_ Overheating: Matter decay (-10). 03270_ Slammed into G-47 Trooper. Map ----- +----------------------------------------------------+ | | | | | | | | | | | | | ?????????????????????????????????????????????????? | | ?????????????????????????????????????????????????? | | ?????????????????????????????????????????????????? | | ?????????????????????????????????????????????????? | | ?????????????????????????????????????????????????? | | ????????????????????????##???????????????????????? | | ???????????????????????# ???????????????????????? | | ??????????????????????? ???????????????????????? | | ???????????????????????# ???????????????????????? | | ???????????????????????# ???????????????????????? | | ???????????????????????# #??????????????????????? | | ???????????????????????# ??????????????????????? | | ???????????????????????# ??????????????????????? | | ???????????????????????# #??????????????????????? | | ???????????????????????# #??????????????????????? | | ??????????????????????## #??????????????????????? | | ????????????? ??????? #??????????????????????? | | ????????????? ????????a #??????????????????????? | | ?????????????# ????????#g#??##+#????????????????? | | ?????????????# #???????#@#### #????????????????? | | ??????????#### +???????# ! # #????????????????? | | ?????????##! #???????# =% # #????????????????? | | ?????????#! #???????# # #????????????????? | | ?????????#! #???????#] [ # #????????????????? | | ?????????#! #???????#]=%Y; #????????????????? | | ??????????! +???????#]%g # #????????????????? | | ???????????? #???????#== ; #????????????????? | | ????????????## ##??????# # #????????????????? | | ????????????# ########;;### #????????????????? | | ????????????# h # "??????????????? | | ????????????# """"???????????? | | ????????????# ###### # """"???????????? | | ????????######/####### ??????????? | | ????????# # [! #########?????????? | | ????????# """ = # % %%=!%= ???????????? | | ????????# ]! """ #### ###??????????????? | | ????????# """ # ##+## [###????????????????? | | ????????# ### #??????????????????? | | ????????# %= #?# ! #??????????????????? | | ????????# [ #?# #??????????????????? | | ????????# / #?# = #######????????????? | | ????????###########?#= ! + =%[ ???????? | | ????????# ### * #########??????????? | | ????????# ""T [/ /= #??????????????????? | +----------------------------------------------------+ Best States ------------- Heat Dissipation 67 Energy Generation 14 Energy Capacity 280 Matter Stores 300 Matter Capacity 300 Sight Range 16 Robot Scan Range 14 Terrain Scan Range 16 Terrain Scan Density 10 Armor Coverage 225 Resistance: EM 15 Evasion (%) 50 Recoil Reduction 2 Item Schematics ----------------- Rocket Launcher | -9/Materials | Scanalyzed Robot Schematics ------------------ None Fabricated ------------ Nothing Alien Tech Used ----------------- None Achievements -------------- Backstab Challenges ------------ None Game ------ Seed TargetTachyonLeg Manual? 0 Play Time 00:34:21 Cumulative 8.6 hours Start 2024.11.04 @ 17:35:12 End 2024.11.04 @ 18:05:11 Sessions 1 Manual Loads 0 Difficulty Rogue Special Mode None Game No. 19 Rogue 19 Adventurer 0 Explorer 0 Win Type - Total 0 Types 0/0/0/0/0/0/0/0/0 Lore% 6 Gallery% 10 Achievement% 10 Wizard Run 0 Options --------- Layout 2 ASCII 0 Keyboard 0 Movement Arrows Keybinds 0 Fullscreen 2 Font 24/Smallcaps Map View 50x49 Zoom Use 43% Tactical HUD 1 Map Filters NONE Filters NONE Steam 1 RUN: 636db0d1-070b-4fbb-a361-f2835180f145